fUSD/lending_fUSD_20241224
["ID","MTS","AMOUNT","RATE_DAILY","PERIOD"]
[346498272,1735008816435,857.6,0.00013972,2]
[346498273,1735008816486,500.0,0.00013698,2]
[346498274,1735008816704,857.6,0.00014246,2]
[346498275,1735008816902,4999.3,0.00014419,2]
[346498276,1735008816962,857.6,0.0001452,2]
[346498277,1735008817170,4999.3,0.00014693,2]
[346498278,1735008817239,857.6,0.00014794,2]
[346498279,1735008817433,4999.3,0.00014967,2]
[346498280,1735008817514,500.0,0.00013698,2]
[346498281,1735008817787,500.0,0.00013972,2]
[346498282,1735008818043,500.0,0.00014246,2]
[346498283,1735008818313,500.0,0.0001452,2]
[346498284,1735008818606,2441.65,0.00013698,2]
[346498285,1735008818658,500.0,0.00014794,2]
[346498286,1735008818747,500.0,0.00013698,2]
[346498287,1735008818858,2441.65,0.00013972,2]
[346498288,1735008818912,500.0,0.00013698,2]
[346498289,1735008819102,2441.65,0.00014246,2]
[346498290,1735008819177,500.0,0.00013972,2]
[346498291,1735008819353,2441.65,0.0001452,2]
[346498292,1735008819416,500.0,0.00014246,2]
[346498293,1735008819606,2441.65,0.00014794,2]
[346498294,1735008819671,500.0,0.0001452,2]
[346498295,1735008819906,500.0,0.00014794,2]
[346498296,1735008819997,500.0,0.00013698,2]
[346498297,1735008820267,500.0,0.00013972,2]
[346498298,1735008820546,500.0,0.00014246,2]
[346498299,1735008820788,500.0,0.0001452,2]
[346498300,1735008821038,559.35050159,0.00014794,2]
[346498301,1735008824595,500.0,0.00013698,2]
[346498302,1735008824855,500.0,0.00013972,2]
[346498303,1735008825111,500.0,0.00014246,2]
[346498304,1735008825362,592.95,0.00014419,2]
[346498305,1735008825418,500.0,0.0001452,2]
[346498306,1735008825551,523.2,0.00013698,2]
[346498307,1735008825606,592.95,0.00014693,2]
[346498308,1735008825659,500.0,0.00014794,2]
[346498309,1735008825709,500.0,0.00013698,2]
[346498310,1735008825765,523.2,0.00013972,2]
[346498311,1735008825860,592.95,0.00014967,2]
[346498312,1735008826218,523.2,0.00014246,2]
[346498313,1735008826457,523.2,0.0001452,2]
[346498314,1735008826805,523.2,0.00014794,2]
[346498315,1735008828789,1266.14,0.00013698,2]
[346498316,1735008828942,500.0,0.00013698,2]
[346498317,1735008829049,1266.14,0.00013972,2]
[346498318,1735008829188,500.0,0.00013972,2]
[346498319,1735008829327,1266.14,0.00014246,2]
[346498320,1735008829440,500.0,0.00014246,2]
[346498321,1735008829607,1266.14,0.0001452,2]
[346498322,1735008829663,500.0,0.00013698,2]
[346498323,1735008829727,500.0,0.0001452,2]
[346498324,1735008829899,1266.14,0.00014794,2]
[346498325,1735008829965,500.0,0.00014794,2]
[346498326,1735008831454,3469.53,0.00014419,2]
[346498327,1735008831700,3469.53,0.00014693,2]
[346498328,1735008831967,3469.53,0.00014967,2]
[346498329,1735008832176,3491.21,0.00013698,2]
[346498330,1735008832438,3491.21,0.00013972,2]
[346498331,1735008832693,3491.21,0.00014246,2]
[346498332,1735008832962,3491.21,0.0001452,2]
[346498333,1735008833222,3491.21,0.00014794,2]
[346498334,1735008833286,500.0,0.00013698,2]
[346498335,1735008833536,500.0,0.00013972,2]
[346498336,1735008834243,500.0,0.00014246,2]
[346498337,1735008834322,500.0,0.0001452,2]
[346498338,1735008834404,500.0,0.00014794,2]
[346498339,1735008836361,20019.66254301,0.00026544,60]
[346498340,1735008836859,500.0,0.00013698,2]
[346498341,1735008837110,500.0,0.00013972,2]
[346498342,1735008837667,700.4705,0.00014968,2]
[346498343,1735008839369,500.0,0.00014246,2]
[346498344,1735008839601,500.0,0.0001452,2]
[346498345,1735008839874,500.0,0.00014794,2]
[346498346,1735008839927,500.0,0.00013698,2]
[346498347,1735008839984,8789.37,0.00013698,2]
[346498348,1735008840176,500.0,0.00013972,2]
[346498349,1735008840301,8789.37,0.00013972,2]
[346498350,1735008840436,500.0,0.00014246,2]
[346498351,1735008840511,8789.37,0.00014246,2]
[346498352,1735008840716,500.0,0.0001452,2]
[346498353,1735008840778,8789.37,0.0001452,2]
[346498354,1735008840990,500.0,0.00014794,2]
[346498355,1735008841047,8789.37,0.00014794,2]
[346498356,1735008843999,500.0,0.00013698,2]
[346498357,1735008844852,500.0,0.00013972,2]
[346498358,1735008844939,500.0,0.00014246,2]
[346498359,1735008845042,500.0,0.0001452,2]
[346498360,1735008845193,500.0,0.00014794,2]
[346498361,1735008845488,1857.95,0.00014419,2]
[346498362,1735008845739,1857.95,0.00014693,2]
[346498363,1735008845799,450.5107208,0.00013698,2]
[346498364,1735008845988,1857.95,0.00014967,2]
[346498365,1735008847471,500.0,0.00013698,2]
[346498366,1735008847713,500.0,0.00013972,2]
[346498367,1735008847976,154.29413662,0.00014246,2]
[346498368,1735008848332,500.0,0.00013698,2]
[346498369,1735008848602,500.0,0.00013972,2]
[346498370,1735008848884,500.0,0.00014246,2]
[346498371,1735008849104,500.0,0.00013698,2]
[346498372,1735008849161,500.0,0.0001452,2]
[346498373,1735008849361,500.0,0.00013972,2]
[346498374,1735008849473,500.0,0.00014794,2]
[346498375,1735008849672,163.46542249,0.00014246,2]
[346498376,1735008849965,595.45,0.00013698,2]
[346498377,1735008850287,734.32,0.00013698,2]
[346498378,1735008850467,595.45,0.00013972,2]
[346498379,1735008850542,734.32,0.00013972,2]
[346498380,1735008850728,595.45,0.00014246,2]
[346498381,1735008850812,734.32,0.00014246,2]
[346498382,1735008850987,595.45,0.0001452,2]
[346498383,1735008851127,734.32,0.0001452,2]
[346498384,1735008851262,595.45,0.00014794,2]
[346498385,1735008851357,734.32,0.00014794,2]
[346498386,1735008852238,500.0,0.00013698,2]
[346498387,1735008852871,500.0,0.00013972,2]
[346498388,1735008853140,500.0,0.00014246,2]
[346498389,1735008853395,500.0,0.0001452,2]
[346498390,1735008853460,500.0,0.00013698,2]
[346498391,1735008853694,500.0,0.00013972,2]
[346498392,1735008853776,500.0,0.00014794,2]
[346498393,1735008853978,500.0,0.00014246,2]
[346498394,1735008854189,554.42346712,0.0001452,2]
[346498395,1735008855613,500.0,0.00013698,2]
[346498396,1735008855687,932.21,0.00013698,2]
[346498397,1735008855955,932.21,0.00013972,2]
[346498398,1735008856028,761.09,0.00014419,2]
[346498399,1735008856188,500.0,0.00013972,2]
[346498400,1735008856248,932.21,0.00014246,2]
[346498401,1735008856314,761.09,0.00014693,2]
[346498402,1735008856430,500.0,0.00014246,2]
[346498403,1735008856505,932.21,0.0001452,2]
[346498404,1735008856563,761.09,0.00014967,2]
[346498405,1735008856671,500.0,0.0001452,2]
[346498406,1735008856746,932.21,0.00014794,2]
[346498407,1735008858498,7936.53,0.00014419,2]
[346498408,1735008858744,7936.53,0.00014693,2]
[346498409,1735008858877,562.62,0.00013698,2]
[346498410,1735008859046,7936.53,0.00014967,2]
[346498411,1735008859209,500.0,0.00013698,2]
[346498412,1735008859476,500.0,0.00013972,2]
[346498413,1735008859533,562.62,0.00013972,2]
[346498414,1735008859584,3366.52,0.00014542,2]
[346498415,1735008859715,500.0,0.00014246,2]
[346498416,1735008859779,562.62,0.00014246,2]
[346498417,1735008859967,500.0,0.0001452,2]
[346498418,1735008860042,562.62,0.0001452,2]
[346498419,1735008860224,500.0,0.00014794,2]
[346498420,1735008860542,562.62,0.00014794,2]
[346498421,1735008864460,500.0,0.00013698,2]
[346498422,1735008864733,500.0,0.00013972,2]
[346498423,1735008865036,500.0,0.00014246,2]
[346498424,1735008865285,500.0,0.0001452,2]
[346498425,1735008866015,500.0,0.00014794,2]
[346498426,1735008866800,500.0,0.00013698,2]
[346498427,1735008867070,500.0,0.00013972,2]
[346498428,1735008867326,500.0,0.00014246,2]
[346498429,1735008867428,312.5,0.00014542,2]
[346498430,1735008867603,165.15188006,0.0001452,2]
[346498431,1735008868261,500.0,0.00013698,2]
[346498432,1735008868586,500.0,0.00013972,2]
[346498433,1735008868640,870.7,0.00013698,2]
[346498434,1735008868769,500.0,0.00013698,2]
[346498435,1735008868836,500.0,0.00014246,2]
[346498436,1735008868900,870.7,0.00013972,2]
[346498437,1735008869015,500.0,0.00013972,2]
[346498438,1735008869075,500.0,0.0001452,2]
[346498439,1735008869128,1000.9,0.00013698,2]
[346498440,1735008869189,870.7,0.00014246,2]
[346498441,1735008869257,500.0,0.00014246,2]
[346498442,1735008869349,1000.9,0.00013972,2]
[346498443,1735008869404,500.0,0.00014794,2]
[346498444,1735008869459,870.7,0.0001452,2]
[346498445,1735008869525,500.0,0.0001452,2]
[346498446,1735008869650,1000.9,0.00014246,2]
[346498447,1735008869710,870.7,0.00014794,2]
[346498448,1735008869779,500.0,0.00014794,2]
[346498449,1735008869914,1000.9,0.0001452,2]
[346498450,1735008870181,1000.9,0.00014794,2]
[346498451,1735008871957,500.0,0.00013698,2]
[346498452,1735008872100,673.82,0.00013698,2]
[346498453,1735008872228,500.0,0.00013972,2]
[346498454,1735008872354,673.82,0.00013972,2]
[346498455,1735008872658,673.82,0.00014246,2]
[346498456,1735008872714,500.0,0.00014246,2]
[346498457,1735008872891,673.82,0.0001452,2]
[346498458,1735008872951,500.0,0.0001452,2]
[346498459,1735008873130,673.82,0.00014794,2]
[346498460,1735008873219,500.0,0.00014794,2]
[346498461,1735008875011,500.0,0.00013698,2]
[346498462,1735008875071,500.0,0.00013698,2]
[346498463,1735008875238,500.0,0.00013972,2]
[346498464,1735008875359,500.0,0.00013972,2]
[346498465,1735008875520,500.0,0.00013698,2]
[346498466,1735008875589,500.0,0.00014246,2]
[346498467,1735008875639,500.0,0.00014246,2]
[346498468,1735008876102,500.0,0.00013972,2]
[346498469,1735008876155,500.0,0.0001452,2]
[346498470,1735008876446,500.0,0.0001452,2]
[346498471,1735008876536,500.0,0.00014246,2]
[346498472,1735008876587,500.0,0.00014794,2]
[346498473,1735008876638,500.0,0.00014794,2]
[346498474,1735008876710,500.0,0.0001452,2]
[346498475,1735008876950,500.0,0.00014794,2]
[346498476,1735008877652,756.21,0.00013698,2]
[346498477,1735008877707,1642.29,0.00013698,2]
[346498478,1735008877949,756.21,0.00013972,2]
[346498479,1735008878005,1642.29,0.00013972,2]
[346498480,1735008878206,756.21,0.00014246,2]
[346498481,1735008878266,1642.29,0.00014246,2]
[346498482,1735008878484,756.21,0.0001452,2]
[346498483,1735008878539,1642.29,0.0001452,2]
[346498484,1735008878677,611.34,0.00013698,2]
[346498485,1735008878746,1642.29,0.00014794,2]
[346498486,1735008878803,756.21,0.00014794,2]
[346498487,1735008878887,611.34,0.00013972,2]
[346498488,1735008879176,611.34,0.00014246,2]
[346498489,1735008879338,500.0,0.00013698,2]
[346498490,1735008879475,611.34,0.0001452,2]
[346498491,1735008879597,500.0,0.00013972,2]
[346498492,1735008879736,611.34,0.00014794,2]
[346498493,1735008880209,500.0,0.00014246,2]
[346498494,1735008880454,500.0,0.0001452,2]
[346498495,1735008880930,394.9183963,0.00014794,2]
[346498496,1735008881460,785.03,0.00014419,2]
[346498497,1735008881728,785.03,0.00014693,2]
[346498498,1735008882037,785.03,0.00014967,2]
[346498499,1735008885896,1128.83,0.00013698,2]
[346498500,1735008885977,627.57,0.00013698,2]
[346498501,1735008886554,1128.83,0.00013972,2]
[346498502,1735008886617,627.57,0.00013972,2]
[346498503,1735008886680,1128.83,0.00014246,2]
[346498504,1735008886740,627.57,0.00014246,2]
[346498505,1735008886813,1128.83,0.0001452,2]
[346498506,1735008886874,627.57,0.0001452,2]
[346498507,1735008886971,1128.83,0.00014794,2]
[346498508,1735008887282,627.57,0.00014794,2]
[346498509,1735008887627,746.86,0.00013698,2]
[346498510,1735008888391,746.86,0.00013972,2]
[346498511,1735008888672,746.86,0.00014246,2]
[346498512,1735008888932,746.86,0.0001452,2]
[346498513,1735008889065,2009.91,0.00013698,2]
[346498514,1735008889173,500.0,0.00013698,2]
[346498515,1735008889227,746.86,0.00014794,2]
[346498516,1735008889684,2009.91,0.00013972,2]
[346498517,1735008889785,500.0,0.00013972,2]
[346498518,1735008889959,2009.91,0.00014246,2]
[346498519,1735008890057,500.0,0.00014246,2]
[346498520,1735008890241,2009.91,0.0001452,2]
[346498521,1735008890303,500.0,0.0001452,2]
[346498522,1735008890494,2009.91,0.00014794,2]
[346498523,1735008890552,500.0,0.00014794,2]
[346498524,1735008894916,500.0,0.00013698,2]
[346498525,1735008894970,500.0,0.00013698,2]
[346498526,1735008895220,500.0,0.00013972,2]
[346498527,1735008895499,500.0,0.00014246,2]
[346498528,1735008895826,500.0,0.0001452,2]
[346498529,1735008896077,500.0,0.00014794,2]
[346498530,1735008898096,500.0,0.00013698,2]
[346498531,1735008898343,500.0,0.00013972,2]
[346498532,1735008898609,500.0,0.00014246,2]
[346498533,1735008898883,500.0,0.0001452,2]
[346498534,1735008899140,500.0,0.00014794,2]
[346498535,1735008899831,1410.33,0.00014419,2]
[346498536,1735008900078,1410.33,0.00014693,2]
[346498537,1735008900373,1410.33,0.00014967,2]
[346498538,1735008900640,504.46858066,0.00013698,2]
[346498539,1735008901912,592.53,0.00013698,2]
[346498540,1735008901965,500.0,0.00013698,2]
[346498541,1735008902186,592.53,0.00013972,2]
[346498542,1735008902247,500.0,0.00013972,2]
[346498543,1735008902434,592.53,0.00014246,2]
[346498544,1735008902516,500.0,0.00014246,2]
[346498545,1735008902656,500.0,0.00013698,2]
[346498546,1735008902714,592.53,0.0001452,2]
[346498547,1735008902931,500.0,0.00013972,2]
[346498548,1735008902984,592.53,0.00014794,2]
[346498549,1735008903047,500.0,0.0001452,2]
[346498550,1735008903201,500.0,0.00014246,2]
[346498551,1735008903448,500.0,0.0001452,2]
[346498552,1735008903589,500.0,0.00014794,2]
[346498553,1735008903708,800.0,0.00014959,2]
[346498554,1735008903767,500.0,0.00014794,2]
[346498555,1735008903841,500.0,0.00013698,2]
[346498556,1735008904088,500.0,0.00013698,2]
[346498557,1735008904149,500.0,0.00013972,2]
[346498558,1735008904352,500.0,0.00014246,2]
[346498559,1735008904425,500.0,0.00013698,2]
[346498560,1735008904488,976.74,0.00013698,2]
[346498561,1735008904661,500.0,0.0001452,2]
[346498562,1735008904755,500.0,0.00013972,2]
[346498563,1735008904831,976.74,0.00013972,2]
[346498564,1735008904928,500.0,0.00014794,2]
[346498565,1735008904995,500.0,0.00014246,2]
[346498566,1735008905067,976.74,0.00014246,2]
[346498567,1735008905243,500.0,0.0001452,2]
[346498568,1735008905348,976.74,0.0001452,2]
[346498569,1735008905512,500.0,0.00014794,2]
[346498570,1735008905629,976.74,0.00014794,2]
[346498571,1735008909535,500.0,0.00013698,2]
[346498572,1735008909785,500.0,0.00013972,2]
[346498573,1735008909874,500.0,0.00013698,2]
[346498574,1735008910056,500.0,0.00013698,2]
[346498575,1735008910128,500.0,0.00014246,2]
[346498576,1735008910202,500.0,0.00013972,2]
[346498577,1735008910360,500.0,0.0001452,2]
[346498578,1735008910427,500.0,0.00014246,2]
[346498579,1735008910642,500.0,0.00014794,2]
[346498580,1735008910714,500.0,0.0001452,2]
[346498581,1735008910778,500.0,0.00013698,2]
[346498582,1735008910899,500.0,0.00014794,2]
[346498583,1735008910992,500.0,0.00013972,2]
[346498584,1735008911191,500.0,0.00014246,2]
[346498585,1735008911514,500.0,0.0001452,2]
[346498586,1735008911778,500.0,0.00014794,2]
[346498587,1735008911954,500.0,0.00013698,2]
[346498588,1735008913423,500.0,0.00013698,2]
[346498589,1735008913700,500.0,0.00013972,2]
[346498590,1735008913982,500.0,0.00014246,2]
[346498591,1735008914098,500.0,0.00013698,2]
[346498592,1735008914236,500.0,0.0001452,2]
[346498593,1735008914489,500.0,0.00014794,2]
[346498594,1735008914618,500.0,0.00013972,2]
[346498595,1735008914684,627.41,0.00013698,2]
[346498596,1735008914858,500.0,0.00014246,2]
[346498597,1735008914924,627.41,0.00013972,2]
[346498598,1735008915118,500.0,0.0001452,2]
[346498599,1735008915176,627.41,0.00014246,2]
[346498600,1735008915393,627.41,0.0001452,2]
[346498601,1735008915449,500.0,0.00014794,2]
[346498602,1735008915657,627.41,0.00014794,2]
[346498603,1735008916002,1000.0,0.00013698,2]
[346498604,1735008916256,1000.0,0.00013972,2]
[346498605,1735008916567,1000.0,0.00014246,2]
[346498606,1735008917647,1000.0,0.0001452,2]
[346498607,1735008917727,1000.0,0.00014794,2]
[346498608,1735008918276,2048.37,0.00013698,2]
[346498609,1735008918524,576.46,0.00013698,2]
[346498610,1735008918721,2048.37,0.00013972,2]
[346498611,1735008918838,576.46,0.00013972,2]
[346498612,1735008918970,2048.37,0.00014246,2]
[346498613,1735008919122,576.46,0.00014246,2]
[346498614,1735008919228,2048.37,0.0001452,2]
[346498615,1735008919388,576.46,0.0001452,2]
[346498616,1735008919546,2048.37,0.00014794,2]
[346498617,1735008919638,576.46,0.00014794,2]
[346498618,1735008921118,500.0,0.00013698,2]
[346498619,1735008921400,500.0,0.00013698,2]
[346498620,1735008921646,333.47685741,0.00013972,2]
[346498621,1735008923268,735.67,0.00013698,2]
[346498622,1735008923430,843.21,0.00013698,2]
[346498623,1735008923611,735.67,0.00013972,2]
[346498624,1735008923689,843.21,0.00013972,2]
[346498625,1735008923774,735.67,0.00014246,2]
[346498626,1735008923938,843.21,0.00014246,2]
[346498627,1735008924032,817.34,0.00013698,2]
[346498628,1735008924090,735.67,0.0001452,2]
[346498629,1735008924205,843.21,0.0001452,2]
[346498630,1735008924293,817.34,0.00013972,2]
[346498631,1735008924375,735.67,0.00014794,2]
[346498632,1735008924458,843.21,0.00014794,2]
[346498633,1735008924567,817.34,0.00014246,2]
[346498634,1735008924825,817.34,0.0001452,2]
[346498635,1735008925142,817.34,0.00014794,2]
[346498636,1735008929179,1235.31,0.00013698,2]
[346498637,1735008929449,1235.31,0.00013972,2]
[346498638,1735008929704,1235.31,0.00014246,2]
[346498639,1735008930044,1235.31,0.0001452,2]
[346498640,1735008930334,1235.31,0.00014794,2]
[346498641,1735008931051,500.0,0.00013698,2]
[346498642,1735008931450,500.0,0.00013972,2]
[346498643,1735008931633,500.0,0.00013698,2]
[346498644,1735008931762,500.0,0.00014246,2]
[346498645,1735008931946,500.0,0.00013972,2]
[346498646,1735008932007,620.35,0.00013698,2]
[346498647,1735008932067,500.0,0.0001452,2]
[346498648,1735008932242,500.0,0.00014246,2]
[346498649,1735008932297,620.35,0.00013972,2]
[346498650,1735008932351,500.0,0.00013698,2]
[346498651,1735008932404,500.0,0.00014794,2]
[346498652,1735008932505,500.0,0.00013972,2]
[346498653,1735008932568,500.0,0.0001452,2]
[346498654,1735008932622,620.35,0.00014246,2]
[346498655,1735008932762,500.0,0.00014246,2]
[346498656,1735008932819,500.0,0.00014794,2]
[346498657,1735008932883,620.35,0.0001452,2]
[346498658,1735008933063,500.0,0.0001452,2]
[346498659,1735008933130,620.35,0.00014794,2]
[346498660,1735008933309,500.0,0.00014794,2]
[346498661,1735008937577,1365.17,0.00013698,2]
[346498662,1735008937848,1365.17,0.00013972,2]
[346498663,1735008938375,1365.17,0.00014246,2]
[346498664,1735008938435,1365.17,0.0001452,2]
[346498665,1735008938644,1365.17,0.00014794,2]
[346498666,1735008939214,500.0,0.00013698,2]
[346498667,1735008940038,500.0,0.00013698,2]
[346498668,1735008940287,500.0,0.00013972,2]
[346498669,1735008940599,500.0,0.00014246,2]
[346498670,1735008941146,500.0,0.0001452,2]
[346498671,1735008941360,500.0,0.00014794,2]
[346498672,1735008941952,1343.31,0.00014419,2]
[346498673,1735008943263,991.31,0.00014419,2]
[346498674,1735008943324,2166.19,0.00013698,2]
[346498675,1735008943547,991.31,0.00014693,2]
[346498676,1735008943611,2166.19,0.00013972,2]
[346498677,1735008943810,991.31,0.00014967,2]
[346498678,1735008943873,2166.19,0.00014246,2]
[346498679,1735008944127,2166.19,0.0001452,2]
[346498680,1735008944555,2166.19,0.00014794,2]
[346498681,1735008945253,1343.31,0.00014693,2]
[346498682,1735008945387,500.0,0.00013698,2]
[346498683,1735008945463,500.0,0.00013698,2]
[346498684,1735008945571,1343.31,0.00014967,2]
[346498685,1735008945656,500.0,0.00013972,2]
[346498686,1735008945862,500.0,0.00013972,2]
[346498687,1735008945964,500.0,0.00014246,2]
[346498688,1735008946461,500.0,0.00014246,2]
[346498689,1735008946518,500.0,0.0001452,2]
[346498690,1735008946602,500.0,0.0001452,2]
[346498691,1735008946666,500.0,0.00014794,2]
[346498692,1735008946747,500.0,0.00014794,2]
[346498693,1735008947504,500.0,0.00013698,2]
[346498694,1735008947754,500.0,0.00013972,2]
[346498695,1735008948021,500.0,0.00014246,2]
[346498696,1735008948358,500.0,0.0001452,2]
[346498697,1735008948763,500.0,0.00014794,2]
[346498698,1735008950870,500.0,0.00013698,2]
[346498699,1735008952709,1047.51,0.00014419,2]
[346498700,1735008952990,1047.51,0.00014693,2]
[346498701,1735008953388,1047.51,0.00014967,2]
[346498702,1735008953522,500.0,0.00013698,2]
[346498703,1735008953775,500.0,0.00013972,2]
[346498704,1735008954061,500.0,0.00014246,2]
[346498705,1735008954555,500.0,0.0001452,2]
[346498706,1735008954813,500.0,0.00014794,2]
[346498707,1735008954968,1646.75,0.00013698,2]
[346498708,1735008955209,1646.75,0.00013972,2]
[346498709,1735008955459,1646.75,0.00014246,2]
[346498710,1735008955717,1646.75,0.0001452,2]
[346498711,1735008955839,550.01,0.00013698,2]
[346498712,1735008956017,1646.75,0.00014794,2]
[346498713,1735008956106,550.01,0.00013972,2]
[346498714,1735008956423,550.01,0.00014246,2]
[346498715,1735008956483,492.63,0.00014558,2]
[346498716,1735008956676,550.01,0.0001452,2]
[346498717,1735008956926,550.01,0.00014794,2]
[346498718,1735008957021,500.0,0.00013698,2]
[346498719,1735008957276,500.0,0.00013972,2]
[346498720,1735008957552,500.0,0.00014246,2]
[346498721,1735008957935,500.0,0.0001452,2]
[346498722,1735008958161,500.0,0.00014794,2]
[346498723,1735008961260,500.0,0.00013698,2]
[346498724,1735008961319,500.0,0.00013698,2]
[346498725,1735008961569,500.0,0.00013972,2]
[346498726,1735008961844,500.0,0.00014246,2]
[346498727,1735008961922,500.0,0.00013698,2]
[346498728,1735008962147,500.0,0.0001452,2]
[346498729,1735008962648,500.0,0.00014794,2]
[346498730,1735008964025,500.0,0.00013698,2]
[346498731,1735008965695,1637.3,0.00013698,2]
[346498732,1735008965852,500.0,0.00013698,2]
[346498733,1735008966103,500.0,0.00013972,2]
[346498734,1735008966170,1637.3,0.00013972,2]
[346498735,1735008966352,500.0,0.00014246,2]
[346498736,1735008966418,1637.3,0.00014246,2]
[346498737,1735008966625,500.0,0.0001452,2]
[346498738,1735008966685,1637.3,0.0001452,2]
[346498739,1735008967307,500.0,0.00014794,2]
[346498740,1735008967426,1637.3,0.00014794,2]
[346498741,1735008968852,500.0,0.00013698,2]
[346498742,1735008969456,500.0,0.00013972,2]
[346498743,1735008969571,500.0,0.00014246,2]
[346498744,1735008969674,500.0,0.0001452,2]
[346498745,1735008969921,500.0,0.00014794,2]
[346498746,1735008972033,1688.07,0.00013698,2]
[346498747,1735008972312,1688.07,0.00013972,2]
[346498748,1735008972561,1688.07,0.00014246,2]
[346498749,1735008972869,1688.07,0.0001452,2]
[346498750,1735008973246,1688.07,0.00014794,2]
[346498751,1735008974607,500.0,0.00013698,2]
[346498752,1735008974891,500.0,0.00013972,2]
[346498753,1735008975141,500.0,0.00014246,2]
[346498754,1735008975418,558.2529454,0.0001452,2]
[346498755,1735008977515,500.0,0.00013698,2]
[346498756,1735008977802,500.0,0.00013972,2]
[346498757,1735008978042,500.0,0.00014246,2]
[346498758,1735008978311,500.0,0.00013698,2]
[346498759,1735008978375,500.0,0.0001452,2]
[346498760,1735008978582,500.0,0.00014794,2]
[346498761,1735008978656,500.0,0.00013972,2]
[346498762,1735008979227,500.0,0.00013698,2]
[346498763,1735008979303,500.0,0.00014246,2]
[346498764,1735008979377,500.0,0.0001452,2]
[346498765,1735008979810,481.73514021,0.00014794,2]
[346498766,1735008981099,10151.21,0.00013698,2]
[346498767,1735008981369,10151.21,0.00013972,2]
[346498768,1735008981650,10151.21,0.00014246,2]
[346498769,1735008981971,10151.21,0.0001452,2]
[346498770,1735008982252,10151.21,0.00014794,2]
[346498771,1735008984993,500.0,0.00014419,2]